[Event "FIDE Rating Open 2024"]
[Site "Dhaka"]
[Date "2024.01.18"]
[Round "4.1"]
[White "Sakline Mostafa, Sajid"]
[Black "Rahman, Ziaur"]
[Result "1/2-1/2"]
[ECO "D35"]
[WhiteElo "2110"]
[BlackElo "2428"]
[Annotator "TA"]
[PlyCount "180"]
[EventDate "2024.01.16"]
[EventType "swiss"]
[EventCountry "BAN"]
[SourceTitle "playchess.com"]
[Source "ChessBase"]
[SourceQuality "1"]
[TimeControl "5400+30"]

{[%evp 12,180,17,2,16,10,14,12,15,25,44,36,30,23,23,2,85,59,66,73,126,66,69,63,62,64,66,52,55,37,39,23,25,18,27,32,18,10,49,49,75,70,133,72,84,75,87,47,41,12,62,61,61,48,73,75,120,31,85,81,83,46,264,237,312,315,312,320,321,321,327,310,521,510,364,320,364,274,374,359,370,366,552,547,535,528,510,502,444,429,398,258,258,242,239,217,332,297,378,256,315,321,311,262,321,206,325,262,331,0,262,189,183,183,183,183,206,183,205,185,206,206,219,206,260,206,206,206,206,190,205,205,206,206,212,190,190,190,198,196,197,197,197,190,201,41,50,0,201,190,190,190,183,176,195,176,176,19,34,0,197,176,176,176,176,107,176,85,85,85,85]} 1. d4 {[%emt 1:31:00]} d5 {[%emt 0:02:40]} 2. c4 {[%emt 0:00:00]} e6 {[%emt 0:00:14]} 3. Nc3 {[%emt 0:00:00]} Nf6 {[%emt 0:01:05]} 4. Nf3 {[%emt 0:00:00]} Nbd7 {[%emt 0:00:59]} 5. Bf4 {[%emt 0:00:00]} Bb4 {[%emt 0:00:20]} 6. cxd5 {[%emt 0:00:00]} exd5 {[%emt 0:00:17]} 7. e3 {[%emt 0:00:00]} Ne4 {[%emt 0:02:46] D35: Queen's Gambit Declined: Exchange Variation.} 8. Qc2 {[%emt 0:00:00]} g5 {[%emt 0:01:33]} 9. Be5 {[%emt 0:00:00]} f6 {[%emt 0:03:39] The position is equal.} 10. Bg3 {[%emt 0:00:00] [#]} Nb6 $146 {[%emt 0:03:27]} ({Predecessor:} 10... h5 11. h4 g4 12. Ng1 Nxg3 13. fxg3 Qe7 14. Kf2 Nb6 15. Bd3 Be6 16. Nge2 O-O-O {1-0 Indjic,A (2631)-Kravtsiv,M (2598) Speed Chess Q2 blitz 2022 (8)}) 11. Bd3 {[%emt 0:00:00]} Bf5 {[%emt 0:02:53]} 12. Nd2 {[%emt 0:00:00][%cal Rd2e4]} Qe7 {[%emt 0:04:54]} 13. O-O {[%emt 0:00:00][%cal Rd2e4]} Bxc3 {[%emt 0:02:07]} (13... Nxg3 $11 {remains equal.} 14. hxg3 Bxd3 15. Qxd3 h5) 14. Bxe4 $16 {[%emt 0:00:00]} (14. bxc3 $6 Nxd2 15. Qxd2 Bxd3 16. Qxd3 O-O $11) 14... dxe4 {[%emt 0:01:52]} 15. bxc3 {[%emt 0:00:00]} Bg6 {[%emt 0:04:44]} (15... h5 $142) 16. c4 {[%emt 0:00:00]} ({White should play} 16. a4 $16) 16... O-O $14 {[%emt 0:01:55]} 17. Rab1 {[%emt 0:00:00]} c5 {[%emt 0:03:13]} 18. dxc5 {[%emt 0:00:00]} Qxc5 {[%emt 0:00:09]} 19. Rb5 {[%emt 0:00:00]} (19. Nxe4 $2 Qxc4 20. Qxc4+ Nxc4 21. Nxf6+ Rxf6 $19) 19... Qc6 {[%emt 0:00:16]} 20. Rfb1 {[%emt 0:00:00]} Rf7 {[%emt 0:07:02]} 21. c5 {[%emt 0:00:00]} Rd8 {[%emt 0:01:49]} 22. Ra5 {[%emt 0:00:00]} Nc8 {[%emt 0:05:31]} 23. Nb3 {[%emt 0:00:00][%cal Bd2b3,Bb3c5,Bc5a4,Ba4c3][%mdl 32]} b6 {[%emt 0:05:12]} 24. Ra6 {[%emt 0:00:00]} Qb5 {[%emt 0:05:08]} 25. Ra3 {[%emt 0:00:00]} Qd3 {[%emt 0:03:49] Prevents Nd4} 26. Qc1 {[%emt 0:00:00] Nd4 would be deadly.} Qd5 {[%emt 0:02:12]} (26... bxc5 $14 27. Nxc5 Qd5) 27. Ra4 {[%emt 0:00:00]} (27. c6 $142) 27... bxc5 $16 {[%emt 0:02:26]} 28. Nxc5 {[%emt 0:00:00]} Qc6 {[%emt 0:01:19]} 29. Ra6 {[%emt 0:00:00]} Nb6 {[%emt 0:01:35][%cal Bc8b6,Bb6c4,Bc4d2][%mdl 32]} 30. Na4 {[%emt 0:00:00][%mdl 64] [#] Discovered Attack} Qc4 {[%emt 0:17:12]} (30... Qxc1+ $11 31. Rxc1 Nxa4 32. Rxa4 Rdd7) 31. Qxc4 $14 {[%emt 0:00:00]} Nxc4 {[%emt 0:00:01]} 32. Rc6 $36 {[%emt 0:00:00][%mdl 2048] White has the initiative.} Rfd7 {[%emt 0:03:13] ( -> ...Rd1+)} 33. Nc3 {[%emt 0:01:06] Inhibits Rd1+.} Nd2 {[%emt 0:01:09]} 34. Rb4 {[%emt 0:03:36]} ({Better is} 34. Rc1 $16) 34... Kg7 {[%emt 0:02:52]} (34... Be8 $14) 35. h4 $16 {[%emt 0:01:58]} h6 {[%emt 0:00:13]} 36. Ra4 {[%emt 0:01:21]} Rb7 $2 {[%emt 0:01:53]} (36... Be8 $14) 37. Raa6 $18 {[%emt 0:02:09]} Rd3 {[%emt 0:02:14][%cal Od3c3]} 38. Rxf6 {[%emt 0:01:09]} (38. hxg5 hxg5 39. Rxf6 Rxc3) 38... Rb6 {[%emt 0:00:54]} 39. Rfxb6 {[%emt 0:01:25]} ({Resist} 39. Raxb6 axb6 40. Rc6 (40. Rxb6 Nc4 $18) 40... Kh7 $18) 39... axb6 {[%emt 0:00:01]} 40. Be5+ {[%emt 0:00:42]} Kf7 {[%emt 0:00:22]} 41. Rxb6 {[%emt 0:01:43]} gxh4 $2 {[%emt 0:01:30]} (41... Nc4) 42. Rf6+ {[%emt 0:00:35]} Kg7 {[%emt 0:00:00]} 43. Rf4+ {[%emt 0:00:30]} Kh7 {[%emt 0:00:02]} 44. Rxh4 {[%emt 0:00:39]} Nc4 {[%emt 0:00:11]} 45. Bd4 {[%emt 0:00:50]} Nd6 {[%emt 0:00:12]} 46. Rf4 {[%emt 0:01:01]} h5 {[%emt 0:00:40]} (46... Nf5 $142) 47. Rf8 {[%emt 0:00:36][%csl Gd4][%cal Rf8h8]} Kh6 {[%emt 0:00:35]} 48. a4 {[%emt 0:01:14] Hoping for a5.} Nf5 {[%emt 0:00:17]} 49. Be5 {[%emt 0:00:17]} ({Inferior is} 49. Nxe4 Nxd4 50. Nc5 Ne2+ 51. Kh2 Rc3 $11) 49... Ne7 {[%emt 0:00:24]} 50. Rf6 {[%emt 0:01:12]} Nd5 {[%emt 0:06:29][%cal Od5f6]} 51. Nxd5 {[%emt 0:00:47]} ({Weaker is} 51. Nxe4 Nxf6 52. Nxf6 Ra3 $11) 51... Rxd5 {[%emt 0:00:00][%mdl 4096] Endgame KRB-KRB} 52. Bf4+ {[%emt 0:00:28]} Kg7 {[%emt 0:00:00]} 53. Ra6 {[%emt 0:00:16]} h4 {[%emt 0:00:00]} (53... Be8 $142 54. a5 Kf7) 54. a5 {[%emt 0:00:48]} Bf5 {[%emt 0:00:00]} 55. Bg5 {[%emt 0:01:09]} h3 {[%emt 0:00:00]} 56. Bf6+ {[%emt 0:00:23]} Kf7 {[%emt 0:00:00]} 57. Bd4 {[%emt 0:00:35] Strongly threatening Rf6+.} hxg2 {[%emt 0:00:00]} 58. Kxg2 {[%emt 0:00:24]} Bg4 {[%emt 0:00:00]} (58... Bd7 {was worth a try.} 59. Kg3 Rf5) 59. Ra7+ {[%emt 0:01:01]} Ke6 {[%emt 0:00:00]} 60. Ra6+ $2 {[%emt 0:00:15]} (60. a6 $18 Be2 61. Rh7) 60... Ke7 $2 {[%emt 0:00:02][%mdl 8192]} (60... Kf7 $1 $11) 61. Kg3 {[%emt 0:00:20]} Be2 {[%emt 0:00:28]} 62. Ra8 {[%emt 0:00:49] aiming for a6.} Ke6 {[%emt 0:00:52]} 63. Re8+ {[%emt 0:00:34]} Kf5 {[%emt 0:00:19]} 64. Rf8+ {[%emt 0:00:38]} Kg5 {[%emt 0:00:30]} 65. Rf4 {[%emt 0:00:30]} Rxa5 {[%emt 0:01:28]} 66. Rxe4 {[%emt 0:00:07]} Rb5 {[%emt 0:00:23]} 67. f3 {[%emt 0:00:26]} Rb1 {[%emt 0:00:50]} 68. Rg4+ {[%emt 0:00:34]} Kf5 {[%emt 0:00:05]} 69. e4+ {[%emt 0:00:36]} Ke6 {[%emt 0:00:01]} 70. Kf4 {[%emt 0:00:17]} Rf1 {[%emt 0:00:19]} 71. Rg3 {[%emt 0:00:25]} Rd1 {[%emt 0:00:41]} 72. Ke3 {[%emt 0:00:59]} Bc4 {[%emt 0:00:03]} 73. Bb2 {[%emt 0:00:37]} Rd3+ {[%emt 0:00:09]} 74. Kf4 {[%emt 0:00:07]} Rb3 {[%emt 0:00:03]} 75. Bd4 {[%emt 0:00:32]} Be2 {[%emt 0:00:22]} 76. Be3 {[%emt 0:00:27]} Kf7 {[%emt 0:01:21]} 77. Rg2 {[%emt 0:00:24]} Bd3 {[%emt 0:00:28]} 78. Ke5 $2 {[%emt 0:00:56]} ({White should try} 78. Bd4 $18) 78... Bb5 $1 $14 {[%emt 0:01:11]} 79. Kf4 $2 {[%emt 0:00:11]} (79. Bc5 $14) 79... Bd3 $1 $18 {[%emt 0:00:11]} 80. Bc5 {[%emt 0:00:42]} Bb5 {[%emt 0:00:29]} 81. Rd2 {[%emt 0:00:26]} Rc3 {[%emt 0:00:22]} 82. Bd4 {[%emt 0:00:29]} Ra3 {[%emt 0:01:28]} 83. Kg3 {[%emt 0:00:38]} Bc6 {[%emt 0:00:29]} 84. Kg4 $2 {[%emt 0:00:28]} (84. Kf2 $18) 84... Bd7+ $1 $11 {[%emt 0:00:01]} 85. Kf4 $2 {[%emt 0:00:20]} (85. Kg5 $14 Rxf3 86. Rh2) 85... Bb5 $1 $18 {[%emt 0:00:02]} 86. Rc2 {[%emt 0:00:33]} Ke6 {[%emt 0:00:20]} 87. Rc5 {[%emt 0:00:29] And now Re5+ would win.} Be2 {[%emt 0:00:17]} 88. Rc3 {[%emt 0:00:50]} (88. Rc6+ $18 Kd7 89. Rc3 Rxc3 90. Bxc3) 88... Ra4 {[%emt 0:01:55]} (88... Rxc3 $16 89. Bxc3 Bb5) 89. Ke3 {[%emt 0:00:11]} (89. Bh8 $18 {and White stays clearly on top.}) 89... Bxf3 $16 {[%emt 0:00:38][%mdl 64] [#] Deflection} 90. Kxf3 {[%emt 0:00:18] Ke3 is the strong threat.} Rxd4 {[%emt 0:00:02] Weighted Error Value: White=0.26 (precise) /Black=0.45} 1/2-1/2

[Event "FIDE Rating Open 2024"]
[Site "Dhaka"]
[Date "2024.01.18"]
[Round "4.2"]
[White "Nayem, Haque"]
[Black "Mohammad Minhaz Uddin"]
[Result "0-1"]
[ECO "C43"]
[WhiteElo "2092"]
[BlackElo "2224"]
[Annotator "RC"]
[PlyCount "62"]
[EventDate "2024.01.16"]
[EventType "swiss"]
[EventCountry "BAN"]
[SourceTitle "playchess.com"]
[Source "ChessBase"]
[SourceQuality "1"]
[TimeControl "5400+30"]

1. e4 {[%emt 0:00:03]} e5 {[%emt 0:00:04]} 2. Nf3 {[%emt 0:00:07]} Nf6 {[%emt 0:00:06]} 3. d4 {[%emt 0:00:31]} Nxe4 {[%emt 1:31:50]} 4. Bd3 {[%emt 0:00:38]} d5 {[%emt 0:00:00]} 5. Nxe5 {[%emt 0:00:24]} Nc6 {[%emt 0:00:00]} 6. Nxc6 {[%emt 0:00:27]} bxc6 {[%emt 0:00:00]} 7. O-O {[%emt 0:00:26]} Bd6 {[%emt 0:00:00]} 8. c4 {[%emt 0:00:18]} Qh4 {[%emt 0:00:00]} 9. g3 {[%emt 0:00:11]} Qf6 {[%emt 0:00:00]} 10. cxd5 {[%emt 0:07:03]} cxd5 {[%emt 0:00:00]} 11. Bb5+ {[%emt 0:07:23]} Kf8 {[%emt 0:00:00]} 12. Nc3 {[%emt 0:12:31]} Bh3 {[%emt 0:00:00]} 13. Nxe4 {[%emt 0:00:28]} dxe4 {[%emt 0:00:00]} 14. Re1 {[%emt 0:00:43]} Qg6 {[%emt 0:00:00]} 15. Bc6 {[%emt 0:04:38]} Re8 {[%emt 0:00:00]} 16. Bxe8 {[%emt 0:01:54]} Kxe8 {[%emt 0:00:00]} 17. Bd2 {[%emt 0:25:08]} f5 {[%emt 0:00:00]} 18. Rc1 {[%emt 0:05:17]} f4 {[%emt 0:00:00]} 19. Qf3 {[%emt 0:00:38]} e3 {[%emt 0:00:00]} 20. Bxe3 {[%emt 0:09:16]} fxe3 {[%emt 0:00:00]} 21. Qa8+ {[%emt 0:08:59]} Kf7 {[%emt 0:00:00]} 22. Qxh8 {[%emt 0:00:32]} exf2+ {[%emt 0:00:00]} 23. Kxf2 {[%emt 0:01:58]} Qf6+ {[%emt 0:00:00]} 24. Ke3 {[%emt 0:00:43]} Qg5+ {[%emt 0:00:47]} 25. Kd3 {[%emt 0:00:48]} Qb5+ {[%emt 0:00:31]} 26. Rc4 {[%emt 0:00:04]} Bf5+ {[%emt 0:00:20]} 27. Kd2 {[%emt 0:08:21]} Qxc4 {[%emt 0:03:46]} 28. Qe8+ {[%emt 0:00:02]} Kf6 {[%emt 0:00:02]} 29. Qd8+ {[%emt 0:00:47]} Kg6 {[%emt 0:00:06]} 30. Qe8+ {[%emt 0:00:26]} Kh6 {[%emt 0:00:05]} 31. Qe3+ {[%emt 0:00:56]} g5 {[%emt 0:00:08]} 0-1

[Event "FIDE Rating Open 2024"]
[Site "Dhaka"]
[Date "2024.01.18"]
[Round "4.3"]
[White "Mohammad, Javed"]
[Black "Abu Sufian, Shakil"]
[Result "1/2-1/2"]
[ECO "D45"]
[WhiteElo "2088"]
[BlackElo "2199"]
[Annotator "RC"]
[PlyCount "78"]
[EventDate "2024.01.16"]
[EventType "swiss"]
[EventCountry "BAN"]
[SourceTitle "playchess.com"]
[Source "ChessBase"]
[SourceQuality "1"]
[TimeControl "5400+30"]

1. d4 {[%emt 0:00:12]} d5 {[%emt 0:00:06]} 2. Nf3 {[%emt 0:00:17]} Nf6 {[%emt 0:00:14]} 3. c4 {[%emt 0:00:12]} c6 {[%emt 0:00:04]} 4. e3 {[%emt 0:00:52]} e6 {[%emt 0:00:25]} 5. Nc3 {[%emt 0:01:16]} Nbd7 {[%emt 0:00:07]} 6. Qc2 {[%emt 0:01:29]} Bd6 {[%emt 0:02:27]} 7. b3 {[%emt 0:01:50]} O-O {[%emt 0:00:13]} 8. Be2 {[%emt 0:00:10]} b6 {[%emt 0:00:09]} 9. O-O {[%emt 0:01:12]} Bb7 {[%emt 0:00:08]} 10. Bb2 {[%emt 0:00:24]} Qe7 {[%emt 0:00:15]} 11. Rfe1 {[%emt 0:08:29]} Rfe8 {[%emt 0:01:23]} 12. Rad1 {[%emt 0:01:40]} Rad8 {[%emt 0:00:07]} 13. g3 {[%emt 0:02:34]} c5 {[%emt 0:04:35]} 14. cxd5 {[%emt 0:01:45]} exd5 {[%emt 0:00:11]} 15. Nh4 {[%emt 0:07:10]} g6 {[%emt 0:01:53]} 16. dxc5 {[%emt 0:09:58]} bxc5 {[%emt 0:00:38]} 17. Bf3 {[%emt 0:03:18]} Qe6 {[%emt 0:06:36]} 18. Nb5 {[%emt 0:03:24]} Be5 {[%emt 0:16:36]} 19. Bg2 {[%emt 0:05:41]} Qb6 {[%emt 0:02:48]} 20. Nc3 {[%emt 0:01:18]} Qa5 {[%emt 0:03:52]} 21. Re2 {[%emt 0:07:26]} Ba6 {[%emt 0:07:53]} 22. Red2 {[%emt 0:10:08]} d4 {[%emt 0:00:27]} 23. Nd5 {[%emt 0:04:00]} d3 {[%emt 0:09:27]} 24. Qc1 {[%emt 0:04:28]} Bxb2 {[%emt 0:12:14]} 25. Qxb2 {[%emt 0:01:44]} Nxd5 {[%emt 0:00:15]} 26. Bxd5 {[%emt 0:00:07]} Nb6 {[%emt 0:00:42]} 27. e4 {[%emt 0:10:08]} Nxd5 {[%emt 0:00:15]} 28. exd5 {[%emt 0:00:06]} Rxd5 {[%emt 0:00:12]} 29. Ng2 {[%emt 0:00:28]} Rde5 {[%emt 0:03:57]} 30. Nf4 {[%emt 0:04:00]} Re1+ {[%emt 0:04:22]} 31. Rxe1 {[%emt 0:00:51]} Rxe1+ {[%emt 0:00:02]} 32. Kg2 {[%emt 0:00:01]} Bb7+ {[%emt 0:00:31]} 33. f3 {[%emt 0:01:53]} Rb1 {[%emt 0:00:50]} 34. Qxb1 {[%emt 0:02:30]} Qxd2+ {[%emt 0:00:14]} 35. Kf1 {[%emt 0:00:19]} g5 {[%emt 0:02:40]} 36. Qxd3 {[%emt 0:00:21]} Qxd3+ {[%emt 0:10:46]} 37. Nxd3 {[%emt 0:00:14]} Bxf3 {[%emt 0:00:12]} 38. Nxc5 {[%emt 0:00:33]} f5 {[%emt 0:00:55]} 39. Kf2 {[%emt 0:01:18]} Bc6 {[%emt 0:00:55]} 1/2-1/2

[Event "FIDE Rating Open 2024"]
[Site "Dhaka"]
[Date "2024.01.18"]
[Round "4.4"]
[White "Rahman, Syed Mahfuzur"]
[Black "Ahmed, Sheikh Nasir"]
[Result "1/2-1/2"]
[ECO "E36"]
[WhiteElo "2087"]
[BlackElo "2182"]
[Annotator "NA RC"]
[PlyCount "45"]
[EventDate "2024.01.16"]
[EventType "swiss"]
[EventCountry "BAN"]
[SourceTitle "playchess.com"]
[Source "ChessBase"]
[SourceQuality "1"]
[TimeControl "5400+30"]

1. d4 {[%emt 0:00:22]} Nf6 {[%emt 0:00:13]} 2. c4 {[%emt 0:01:59]} e6 {[%emt 0:00:11]} 3. Nc3 {[%emt 0:06:20]} Bb4 {[%emt 0:00:16]} 4. Qc2 {[%emt 0:00:01]} d5 {[%emt 0:00:21]} 5. a3 {[%emt 0:00:28]} Bxc3+ {[%emt 0:00:52]} 6. Qxc3 {[%emt 0:00:04]} O-O {[%emt 0:06:00]} 7. cxd5 {[%emt 0:05:50]} Nxd5 {[%emt 0:05:18]} 8. Qc2 {[%emt 0:01:06]} e5 $16 {[%emt 0:16:56]} 9. dxe5 {[%emt 0:15:25]} Nc6 {[%emt 0:00:43]} 10. Nf3 {[%emt 0:09:21]} Re8 {[%emt 0:03:29]} 11. Bg5 {[%emt 0:19:33]} Qd7 {[%emt 0:00:35]} 12. O-O-O {[%emt 0:02:15]} Qe6 {[%emt 0:14:20]} 13. e4 {[%emt 0:02:59]} Nb6 {[%emt 0:00:18]} 14. Bf4 {[%emt 0:08:25]} Qa2 {[%emt 0:03:18]} 15. Qb1 {[%emt 0:01:55]} Qb3 {[%emt 0:02:22]} 16. Qc2 {[%emt 0:03:46]} Qa2 {[%emt 0:00:45]} 17. Qb1 {[%emt 0:05:37]} Qb3 {[%emt 0:00:31]} 18. Qc2 {[%emt 0:14:04]} Qa2 {[%emt 0:43:02]} 19. Qb1 {[%emt 0:00:30]} Qb3 20. Nd2 {[%emt 0:00:00]} Qa4 {[%emt 0:01:00]} 21. Nf3 {[%emt 0:01:00]} Qb3 22. Qc2 Qa2 23. Qb1 {[%emt 0:01:00]} 1/2-1/2

[Event "FIDE Rating Open 2024"]
[Site "Dhaka"]
[Date "2024.01.18"]
[Round "4.5"]
[White "Saiful Islam, Chowdhury"]
[Black "abzid, Rahman"]
[Result "0-1"]
[ECO "B29"]
[WhiteElo "2130"]
[BlackElo "2004"]
[Annotator "RC"]
[PlyCount "68"]
[EventDate "2024.01.16"]
[EventType "swiss"]
[EventCountry "BAN"]
[SourceTitle "playchess.com"]
[Source "ChessBase"]
[SourceQuality "1"]
[TimeControl "5400+30"]

1. e4 {[%emt 0:00:11]} c5 {[%emt 0:00:13]} 2. Nf3 {[%emt 0:01:21]} Nf6 {[%emt 0:00:10]} 3. e5 {[%emt 0:00:46]} Nd5 {[%emt 0:00:06]} 4. c4 {[%emt 0:00:37]} Nc7 {[%emt 0:00:09]} 5. b4 {[%emt 0:02:16]} cxb4 {[%emt 0:01:07]} 6. a3 {[%emt 0:00:12]} e6 {[%emt 0:12:21]} 7. Be2 {[%emt 0:01:15]} d5 {[%emt 0:03:19]} 8. exd6 {[%emt 0:02:21]} Bxd6 {[%emt 0:00:28]} 9. d4 {[%emt 0:02:40]} bxa3 {[%emt 0:00:18]} 10. O-O {[%emt 0:02:52]} Nc6 {[%emt 0:01:49]} 11. Nc3 {[%emt 0:01:05]} O-O {[%emt 0:02:19]} 12. Qc2 {[%emt 0:01:06]} e5 {[%emt 0:13:03]} 13. d5 {[%emt 0:06:10]} Nd4 {[%emt 0:02:24]} 14. Nxd4 {[%emt 0:00:21]} exd4 {[%emt 0:00:18]} 15. Ne4 {[%emt 0:00:11]} Bf5 {[%emt 0:01:25]} 16. Bd3 {[%emt 0:00:17]} Bxe4 {[%emt 0:07:23]} 17. Bxe4 {[%emt 0:00:07]} g6 {[%emt 0:07:57]} 18. f4 {[%emt 0:04:42]} f5 {[%emt 0:11:28]} 19. Bf3 {[%emt 0:00:56]} Na6 {[%emt 0:00:59]} 20. Bxa3 {[%emt 0:01:47]} Bxa3 {[%emt 0:04:19]} 21. Rxa3 {[%emt 0:00:06]} Qd6 {[%emt 0:00:24]} 22. Rfa1 {[%emt 0:06:11]} Rac8 {[%emt 0:07:23]} 23. g3 {[%emt 0:05:04]} Rc7 {[%emt 0:04:17]} 24. Qe2 {[%emt 0:04:42]} Re7 {[%emt 0:00:36]} 25. Rxa6 {[%emt 0:08:25]} bxa6 {[%emt 0:00:23]} 26. Rxa6 {[%emt 0:08:17]} Rxe2 {[%emt 0:03:01]} 27. Rxd6 {[%emt 0:00:08]} Re3 {[%emt 0:00:59]} 28. Kf2 {[%emt 0:01:19]} Rb8 {[%emt 0:00:37]} 29. Bg2 {[%emt 0:06:13]} Rb2+ {[%emt 0:00:14]} 30. Kf1 {[%emt 0:00:12]} Rc3 {[%emt 0:02:35]} 31. Kg1 {[%emt 0:01:04]} d3 {[%emt 0:00:59]} 32. Rd8+ {[%emt 0:00:29]} Kg7 {[%emt 0:00:58]} 33. Bf1 {[%emt 0:03:06]} d2 {[%emt 0:00:13]} 34. Be2 {[%emt 0:00:11]} d1=Q+ {[%emt 0:00:29]} 0-1

[Event "FIDE Rating Open 2024"]
[Site "Dhaka"]
[Date "2024.01.18"]
[Round "4.6"]
[White "Zia, Tahsin Tajwar"]
[Black "Sajidul, Haque"]
[Result "1-0"]
[ECO "D43"]
[WhiteElo "2275"]
[BlackElo "1922"]
[Annotator "RC"]
[PlyCount "119"]
[EventDate "2024.01.16"]
[EventType "swiss"]
[EventCountry "BAN"]
[SourceTitle "playchess.com"]
[Source "ChessBase"]
[SourceQuality "1"]
[TimeControl "5400+30"]

1. d4 {[%emt 0:01:07]} d5 {[%emt 0:00:06]} 2. c4 {[%emt 0:00:19]} c6 {[%emt 0:00:10]} 3. Nf3 {[%emt 0:00:05]} Nf6 {[%emt 0:00:09]} 4. Nc3 {[%emt 0:00:09]} e6 {[%emt 0:00:11]} 5. Qd3 {[%emt 0:00:09]} Nbd7 {[%emt 0:00:14]} 6. g3 {[%emt 0:00:12]} b6 {[%emt 0:00:17]} 7. Bg2 {[%emt 0:01:05]} Ba6 {[%emt 0:00:13]} 8. b3 {[%emt 0:00:02]} Rc8 {[%emt 0:00:44]} 9. O-O {[%emt 0:00:53]} Bb4 {[%emt 0:00:09]} 10. Bb2 {[%emt 0:07:02]} O-O {[%emt 0:00:29]} 11. Rac1 {[%emt 0:01:06]} Qe7 {[%emt 0:00:38]} 12. a3 {[%emt 0:04:46]} Bxc3 {[%emt 0:02:00]} 13. Qxc3 {[%emt 0:01:37]} Ne4 {[%emt 0:02:49]} 14. Qe1 {[%emt 0:02:19]} Rfe8 {[%emt 0:06:16]} 15. Nd2 {[%emt 0:02:55]} Nxd2 {[%emt 0:01:27]} 16. Qxd2 {[%emt 0:00:03]} Red8 {[%emt 0:07:13]} 17. Rfd1 {[%emt 0:03:46]} Nf6 {[%emt 0:30:25]} 18. Qf4 {[%emt 0:01:13]} Qd6 {[%emt 0:04:48]} 19. Qxd6 {[%emt 0:03:38]} Rxd6 {[%emt 0:00:30]} 20. f3 {[%emt 0:00:16]} Rdd8 {[%emt 0:02:23]} 21. e4 {[%emt 0:00:30]} Bb7 {[%emt 0:01:02]} 22. e5 {[%emt 0:05:22]} Ne8 {[%emt 0:00:17]} 23. f4 {[%emt 0:02:11]} Rc7 {[%emt 0:03:33]} 24. Rd2 {[%emt 0:04:19]} Rcd7 {[%emt 0:01:20]} 25. c5 {[%emt 0:03:56]} f5 {[%emt 0:05:53]} 26. a4 {[%emt 0:01:13]} Rb8 {[%emt 0:02:50]} 27. cxb6 {[%emt 0:04:13]} axb6 {[%emt 0:00:02]} 28. Ba3 {[%emt 0:00:07]} Ra8 {[%emt 0:03:26]} 29. Bb4 {[%emt 0:00:50]} Nc7 {[%emt 0:01:34]} 30. Rdc2 {[%emt 0:01:22]} Kf7 {[%emt 0:01:49]} 31. Bf1 {[%emt 0:00:49]} Na6 {[%emt 0:02:12]} 32. Bd2 {[%emt 0:01:02]} Rc7 {[%emt 0:01:06]} 33. b4 {[%emt 0:01:45]} Rac8 {[%emt 0:07:35]} 34. Bxa6 {[%emt 0:01:47]} Bxa6 {[%emt 0:00:02]} 35. b5 {[%emt 0:00:10]} Bb7 {[%emt 0:00:04]} 36. a5 {[%emt 0:00:06]} bxa5 {[%emt 0:01:15]} 37. Bxa5 {[%emt 0:00:08]} Re7 {[%emt 0:00:10]} 38. bxc6 {[%emt 0:02:26]} Ba6 {[%emt 0:01:35]} 39. c7 {[%emt 0:03:23]} Bc4 {[%emt 0:00:21]} 40. Rb2 {[%emt 0:00:45]} Ree8 {[%emt 0:01:36]} 41. Rcb1 {[%emt 0:00:50]} Bd3 {[%emt 0:00:35]} 42. Rd1 {[%emt 0:01:04]} Bc4 {[%emt 0:00:07]} 43. Rb7 {[%emt 0:00:11]} Ke7 {[%emt 0:05:24]} 44. Rdb1 {[%emt 0:00:56]} Kd7 {[%emt 0:04:16]} 45. R1b6 {[%emt 0:00:48]} g6 {[%emt 0:01:51]} 46. Rd6+ {[%emt 0:04:28]} Ke7 {[%emt 0:00:01]} 47. Rd8 {[%emt 0:00:17]} Bd3 {[%emt 0:02:02]} 48. Kf2 {[%emt 0:00:47]} h6 {[%emt 0:00:29]} 49. Ke3 {[%emt 0:00:08]} Bf1 {[%emt 0:00:24]} 50. Rb8 {[%emt 0:01:20]} Ba6 {[%emt 0:00:04]} 51. Kd2 {[%emt 0:00:47]} Kf7 {[%emt 0:01:07]} 52. Rbxc8 {[%emt 0:00:57]} Bxc8 {[%emt 0:00:07]} 53. Kc3 {[%emt 0:00:04]} g5 {[%emt 0:01:08]} 54. Kb4 {[%emt 0:35:47]} Bb7 {[%emt 0:00:31]} 55. Kb5 {[%emt 0:00:00]} gxf4 {[%emt 0:00:29]} 56. gxf4 {[%emt 0:00:00]} Bc8 {[%emt 0:00:30]} 57. Kb6 {[%emt 0:00:00]} Ke7 {[%emt 0:00:30]} 58. Ka7 {[%emt 0:00:00]} h5 {[%emt 0:00:26]} 59. Kb8 {[%emt 0:00:00]} Ba6 {[%emt 0:00:34]} 60. c8=Q {[%emt 0:00:00]} 1-0

[Event "FIDE Rating Open 2024"]
[Site "Dhaka"]
[Date "2024.01.19"]
[Round "5.1"]
[White "Mohammad Minhaz Uddin"]
[Black "abzid, Rahman"]
[Result "1-0"]
[ECO "B29"]
[WhiteElo "2224"]
[BlackElo "2004"]
[Annotator "RC"]
[PlyCount "73"]
[EventDate "2024.01.16"]
[EventType "swiss"]
[EventCountry "BAN"]
[SourceTitle "playchess.com"]
[Source "ChessBase"]
[SourceQuality "1"]
[TimeControl "5400+30"]

1. e4 {[%emt 0:00:03]} c5 {[%emt 0:00:37]} 2. Nf3 {[%emt 0:00:02]} Nf6 {[%emt 0:00:12]} 3. e5 {[%emt 0:00:03]} Nd5 {[%emt 1:31:11]} 4. Nc3 Nxc3 {[%emt 0:00:00]} 5. dxc3 {[%emt 0:00:05]} Nc6 {[%emt 0:00:00]} 6. Bf4 {[%emt 0:00:02]} Qb6 {[%emt 0:00:00]} 7. b3 {[%emt 0:00:10]} Qc7 {[%emt 0:00:00]} 8. Bd3 {[%emt 0:00:21]} h6 {[%emt 0:00:00]} 9. h4 {[%emt 0:00:04]} e6 {[%emt 0:00:00]} 10. Qe2 {[%emt 0:01:06]} a6 {[%emt 0:00:00]} 11. O-O-O {[%emt 0:00:24]} Qa5 {[%emt 0:00:00]} 12. Kb1 {[%emt 0:00:31]} b5 {[%emt 0:00:00]} 13. Be4 {[%emt 0:00:31]} Bb7 {[%emt 0:00:00]} 14. Bd2 {[%emt 0:05:33]} Qc7 {[%emt 0:00:00]} 15. Bc1 {[%emt 0:05:13]} O-O-O {[%emt 0:00:00]} 16. Bb2 {[%emt 0:03:16]} Na5 {[%emt 0:00:00]} 17. Nd2 {[%emt 0:04:30]} Be7 {[%emt 0:00:00]} 18. c4 {[%emt 0:04:45]} bxc4 {[%emt 0:00:00]} 19. Nxc4 {[%emt 0:06:03]} Nxc4 {[%emt 0:00:00]} 20. Qxc4 {[%emt 0:00:13]} f5 {[%emt 0:00:00]} 21. Bxb7+ {[%emt 0:03:19]} Kxb7 {[%emt 0:00:00]} 22. h5 {[%emt 0:00:26]} Qc6 {[%emt 0:00:00]} 23. f4 {[%emt 0:12:03]} Rhg8 {[%emt 0:00:00]} 24. Bc3 {[%emt 0:02:31]} g5 {[%emt 0:00:00]} 25. hxg6 {[%emt 0:03:58]} Rxg6 {[%emt 0:00:00]} 26. Rh3 {[%emt 0:01:06]} d5 {[%emt 0:00:00]} 27. exd6 {[%emt 0:00:09]} Rxd6 {[%emt 0:00:00]} 28. Rxd6 {[%emt 0:00:32]} Bxd6 {[%emt 0:00:00]} 29. Rd3 {[%emt 0:01:41]} Bc7 {[%emt 0:00:00]} 30. Be5 {[%emt 0:09:20]} Bxe5 {[%emt 0:00:00]} 31. fxe5 {[%emt 0:00:07]} Rg4 {[%emt 0:00:00]} 32. Qc3 {[%emt 0:00:05]} Qb5 {[%emt 0:02:46]} 33. Rd6 {[%emt 0:02:47]} Qb4 {[%emt 0:00:23]} 34. Qe3 {[%emt 0:17:30]} Rxg2 {[%emt 0:01:24]} 35. a3 {[%emt 0:01:58]} Qe4 {[%emt 0:07:04]} 36. Qxc5 {[%emt 0:00:07]} Qe1+ {[%emt 0:01:27]} 37. Ka2 {[%emt 0:01:14]} 1-0